lending/lending_fUSD_20250131
["ID","MTS","AMOUNT","RATE_DAILY","PERIOD"]
[351136876,1738348271369,-1746.14,0.00018764,2]
[351136877,1738348271378,-1127.11,0.00018764,2]
[351136878,1738348271387,-957.27,0.00018764,2]
[351136879,1738348271397,-683.39,0.00018764,2]
[351136880,1738348271406,-834.53,0.00018764,2]
[351136881,1738348271416,-3304.95,0.00018764,2]
[351136882,1738348271425,-1375.96,0.00018764,2]
[351136883,1738348271435,-1152.1,0.00018764,2]
[351136884,1738348271445,-151.742883,0.00018764,2]
[351136885,1738348271454,-637.73,0.00018764,2]
[351136886,1738348271463,-1174.79,0.00018764,2]
[351136887,1738348271472,-861.45,0.00018764,2]
[351136888,1738348271482,-5050.15,0.00018764,2]
[351136889,1738348271495,-1552.68,0.00018764,2]
[351136890,1738348271504,-1714.15,0.00018764,2]
[351136891,1738348271514,-970.54,0.00018764,2]
[351136892,1738348271524,-974.2,0.00018764,2]
[351136893,1738348271533,-2977.2,0.00018764,2]
[351136894,1738348271543,-2130.65,0.00018764,2]
[351136895,1738348271552,-2472.78,0.00018764,2]
[351136896,1738348271562,-2310.79,0.00018764,2]
[351136897,1738348271573,-3082.33,0.00018764,2]
[351136898,1738348271583,-1236.46,0.00018764,2]
[351136899,1738348271592,-500.0,0.00018764,2]
[351136900,1738348271601,-1531.95,0.00018764,2]
[351136901,1738348271611,-1897.38,0.00018764,2]
[351136902,1738348271621,-500.0,0.00018764,2]
[351136903,1738348271630,-4150.61,0.00018764,2]
[351136904,1738348271639,-4363.87,0.00018764,2]
[351136905,1738348271649,-500.0,0.00018764,2]
[351136906,1738348271659,-166.309678,0.00018764,2]
[351136907,1738348271668,-151.74288,0.00018764,2]
[351136908,1738348271678,-977.31,0.00018764,2]
[351136909,1738348271688,-500.0,0.00018764,2]
[351136910,1738348271698,-500.0,0.00018764,2]
[351136911,1738348271707,-755.3,0.00018764,2]
[351136912,1738348271716,-657.65,0.00018765,2]
[351136913,1738348271727,-500.0,0.00018765,2]
[351136914,1738348271736,-500.0,0.00018765,2]
[351136915,1738348271745,-500.0,0.00018765,2]
[351136916,1738348271754,-772.66,0.00018765,2]
[351136917,1738348271763,-500.0,0.00018765,2]
[351136918,1738348271772,-500.0,0.00018765,2]
[351136919,1738348271782,-606.93,0.00018765,2]
[351136920,1738348271792,-522.94,0.00018765,2]
[351136921,1738348271801,-691.72,0.00018765,2]
[351136922,1738348271811,-694.08,0.00018765,2]
[351136923,1738348271820,-500.0,0.00018765,2]
[351136924,1738348271830,-500.0,0.00018765,2]
[351136925,1738348271839,-622.01,0.00018765,2]
[351136926,1738348271848,-500.0,0.00018765,2]
[351136927,1738348271857,-500.0,0.00018765,2]
[351136928,1738348271866,-500.0,0.00018765,2]
[351136929,1738348271876,-799.89,0.00018765,2]
[351136930,1738348271885,-500.0,0.00018765,2]
[351136931,1738348271895,-666.3,0.00018765,2]
[351136932,1738348271904,-536.21,0.00018765,2]
[351136933,1738348271915,-872.1,0.00018765,2]
[351136934,1738348271925,-1030.96,0.00018765,2]
[351136935,1738348271936,-544.21,0.00018765,2]
[351136936,1738348271945,-4715.16,0.00018765,2]
[351136937,1738348271954,-993.3,0.00018765,2]
[351136938,1738348271964,-2605.9,0.00018765,2]
[351136939,1738348271974,-4721.91,0.00018765,2]
[351136940,1738348271983,-2283.47,0.00018765,2]
[351136941,1738348271992,-939.45,0.00018765,2]
[351136942,1738348272002,-2389.08,0.00018765,2]
[351136943,1738348272012,-563.09796314,0.00018765,2]
[351136944,1738348272021,-965.04,0.00018765,2]
[351136945,1738348272031,-557.93,0.00018765,2]
[351136946,1738348272041,-2395.63,0.00018765,2]
[351136947,1738348272050,-1060.87,0.00018765,2]
[351136948,1738348272060,-1276.49,0.00018765,2]
[351136949,1738348272070,-500.0,0.00018765,2]
[351136950,1738348272080,-973.6,0.00018765,2]
[351136951,1738348272089,-510.61,0.00018766,2]
[351136952,1738348272098,-500.0,0.00018766,2]
[351136953,1738348272107,-500.0,0.00018766,2]
[351136954,1738348272117,-500.0,0.00018766,2]
[351136955,1738348272126,-1455.79,0.00018767,2]
[351136956,1738348272137,-686.9,0.00018767,2]
[351136957,1738348272147,-500.0,0.00018767,2]
[351136958,1738348272156,-2551.27,0.00018767,2]
[351136959,1738348272166,-1359.74,0.00018767,2]
[351136960,1738348272176,-3164.08,0.00018767,2]
[351136961,1738348272186,-1771.52,0.00018767,2]
[351136962,1738348272196,-3352.95,0.00018767,2]
[351136963,1738348272206,-1723.08,0.00018767,2]
[351136964,1738348272215,-904.61,0.00018767,2]
[351136965,1738348272225,-3205.13,0.00018767,2]
[351136966,1738348272234,-2877.99,0.00018767,2]
[351136967,1738348272244,-2087.9,0.00018767,2]
[351136968,1738348272253,-500.0,0.00018767,2]
[351136969,1738348272262,-2031.19,0.00018767,2]
[351136970,1738348272272,-1464.79,0.00018767,2]
[351136971,1738348272281,-500.0,0.00018767,2]
[351136972,1738348272291,-7094.67,0.00018767,2]
[351136973,1738348272300,-846.73,0.00018767,2]
[351136974,1738348272310,-2577.0,0.00018772,2]
[351136975,1738348272319,-1000.0,0.00018786,2]
[351136976,1738348272328,-1000.0,0.00018786,2]
[351136977,1738348272338,-1000.0,0.00018786,2]
[351136978,1738348272348,-1000.0,0.00018786,2]
[351136979,1738348272357,-1000.0,0.00018786,2]
[351136980,1738348272366,-557.7639,0.00018786,2]
[351136981,1738348272376,-2578.78685782,0.000188,2]
[351136982,1738348272386,-5800.0,0.000188,2]
[351136983,1738348272396,-64171.58504011,0.000188,2]
[351136984,1738348272406,-164.80773758,0.000188,2]
[351136985,1738348272415,-906.56975435,0.000188,2]
[351136986,1738348272425,-3076.49999901,0.000188,2]
[351136987,1738348272436,-11560.1626601,0.000188,2]
[351136988,1738348272444,-3681.09511242,0.0001881,2]
[351136989,1738348272454,-11560.1626601,0.0001882,2]
[351136990,1738348272463,-3681.09511242,0.0001882,2]
[351136991,1738348272472,-201.87,0.00018822,2]
[351136992,1738348272481,-11560.1626601,0.0001884,2]
[351136993,1738348272490,-3681.09511242,0.0001884,2]
[351136994,1738348272498,-11560.1626601,0.0001886,2]
[351136995,1738348272510,-3681.09511242,0.0001886,2]
[351136996,1738348272519,-2257.8576097,0.00018867,2]
[351136997,1738348272529,-1739.1949881,0.00018867,2]
[351136998,1738348272539,-1220.5323664,0.00018867,2]
[351136999,1738348272548,-701.8697448,0.00018867,2]
[351137000,1738348272557,-183.2071232,0.00018867,2]
[351137001,1738348272567,-470.7137124,0.00018867,2]
[351137002,1738348272578,-470.7137124,0.00018867,2]
[351137003,1738348272588,-470.7137124,0.00018867,2]
[351137004,1738348272598,-470.7137124,0.00018867,2]
[351137005,1738348272608,-470.7137124,0.00018867,2]
[351137006,1738348272618,-660.7444094,0.00018867,2]
[351137007,1738348272627,-660.7444094,0.00018867,2]
[351137008,1738348272637,-660.7444094,0.00018867,2]
[351137009,1738348272646,-660.7444094,0.00018867,2]
[351137010,1738348272656,-660.7444094,0.00018867,2]
[351137011,1738348272666,-565.22,0.00018872,2]
[351137012,1738348272676,-500.0,0.00018873,2]
[351137013,1738348272687,-387.1855889,0.00018873,2]
[351137014,1738348272696,-8534.7291942,0.00018873,2]
[351137015,1738348272705,-4020.8584793,0.00018873,2]
[351137016,1738348272714,-732.1350532,0.00018873,2]
[351137017,1738348272723,-774.37117882,0.00018873,2]
[351137018,1738348272732,-1050.9018097,0.00018873,2]
[351137019,1738348272742,-2776.5202313,0.00018873,2]
[351137020,1738348272752,-470.7137124,0.00018873,2]
[351137021,1738348272763,-660.7444094,0.00018873,2]
[351137022,1738348272772,-150.0,0.00018877,2]
[351137023,1738348272781,-150.0,0.00018877,2]
[351137024,1738348272790,-150.0,0.00018877,2]
[351137025,1738348272800,-500.0,0.00018879,2]
[351137026,1738348272809,-500.0,0.00018879,2]
[351137027,1738348272819,-565.22,0.00018879,2]
[351137028,1738348272829,-565.22,0.00018879,2]
[351137029,1738348272838,-565.22,0.00018879,2]
[351137030,1738348272847,-565.22,0.00018879,2]
[351137031,1738348272856,-565.37144075,0.00018879,2]
[351137032,1738348272865,-43000.75705037,0.0001888,2]
[351137033,1738348272874,-402278.80037793,0.0001888,2]
[351137034,1738348272884,-151.0,0.0001888,2]
[351137035,1738348272893,-151.0,0.0001888,2]
[351137036,1738348272903,-150.0,0.00018886,2]
[351137037,1738348272912,-3269.1104176,0.00018886,2]
[351137038,1738348272922,-2517.3623559,0.00018886,2]
[351137039,1738348272942,-1765.6142943,0.00018886,2]
[351137040,1738348272951,-1013.8662326,0.00018886,2]
[351137041,1738348272961,-262.1181709,0.00018886,2]
[351137042,1738348272971,-732.1350532,0.00018886,2]
[351137043,1738348272980,-732.1350532,0.00018886,2]
[351137044,1738348272991,-732.1350532,0.00018886,2]
[351137045,1738348273000,-732.1350532,0.00018886,2]
[351137046,1738348273010,-732.1350532,0.00018886,2]
[351137047,1738348273019,-1050.9018097,0.00018886,2]
[351137048,1738348273028,-1050.9018097,0.00018886,2]
[351137049,1738348273037,-1050.9018097,0.00018886,2]
[351137050,1738348273047,-1050.9018097,0.00018886,2]
[351137051,1738348273056,-1050.9018097,0.00018886,2]
[351137052,1738348273066,-558.39,0.00018899,2]
[351137053,1738348273075,-1000.0,0.000189,7]
[351137054,1738348273086,-1000.0,0.000189,5]
[351137055,1738348273096,-1000.0,0.000189,9]
[351137056,1738348273106,-9992.47911003,0.000189,2]
[351137057,1738348273115,-5613.0,0.000189,2]
[351137058,1738348273125,-1707.95,0.000189,2]
[351137059,1738348273135,-615278.77473179,0.000189,2]
[351137060,1738348273144,-500.0,0.000189,2]
[351137061,1738348273153,-500.0,0.000189,2]
[351137062,1738348273163,-500.0,0.000189,2]
[351137063,1738348273172,-500.0,0.000189,2]
[351137064,1738348273183,-500.0,0.000189,2]
[351137065,1738348273192,-786.06,0.000189,2]
[351137066,1738348273201,-1000.0,0.000189,2]
[351137067,1738348273211,-5392550.29727463,0.000189,2]
[351137068,1738348273457,-500.0,0.0001726,2]
[351137069,1738348273467,-114.1916537,0.00017394,2]
[351137070,1738348273479,-385.8083463,0.00017394,2]
[351137071,1738348273488,-241.87577154,0.000189,2]
[351137072,1738348273534,-870.13,0.00018491,2]
[351137073,1738348273545,-5895.26999997,0.000189,2]
[351137074,1738348273556,-77207.6343394,0.000189,2]
[351137075,1738348273567,-3181.000928,0.000189,2]
[351137076,1738348274063,-500.0,0.00016438,2]
[351137077,1738348274074,-500.0,0.00016575,2]
[351137078,1738348274083,-500.0,0.00016712,2]
[351137079,1738348274092,-3.099951,0.00017257,2]
[351137080,1738348274113,-786.510049,0.00017257,2]
[351137081,1738348274122,-789.61,0.00017394,2]
[351137082,1738348274131,-1177.58,0.00017395,2]
[351137083,1738348274141,-1436.17,0.00017397,2]
[351137084,1738348274150,-500.0,0.00017531,2]
[351137085,1738348274159,-789.61,0.00017531,2]
[351137086,1738348274169,-1171.17428163,0.00017531,2]
[351137087,1738348274180,-422.53571837,0.00017531,2]
[351137088,1738348274193,-1177.58,0.00017532,2]
[351137089,1738348274202,-72.51972218,0.00017534,2]
[351137090,1738348274213,-353.14000001,0.00017534,2]
[351137091,1738348274224,-280.02577922,0.00017534,2]
[351137092,1738348274236,-730.48449859,0.00017534,2]
[351137093,1738348274246,-236.87670398,0.00017668,2]
[351137094,1738348274255,-76.73879743,0.00017668,2]
[351137095,1738348274280,-712.87120257,0.00017668,2]
[351137096,1738348274290,-1593.71,0.00017668,2]
[351137097,1738348274299,-500.0,0.00017669,2]
[351137098,1738348274310,-1177.58,0.00017669,2]
[351137099,1738348274319,-1436.17,0.00017671,2]
[351137100,1738348274330,-789.61,0.00017805,2]
[351137101,1738348274340,-1593.71,0.00017805,2]
[351137102,1738348274349,-575.35996313,0.00017806,2]
[351137103,1738348274358,-1177.58,0.00017806,2]
[351137104,1738348274367,-1054.0088343,0.00017808,2]
[351137105,1738348274379,-382.1611657,0.00017808,2]
[351137106,1738348274389,-789.61,0.00017942,2]
[351137107,1738348274398,-1593.71,0.00017942,2]
[351137108,1738348274408,-1436.17,0.00017945,2]
[351137109,1738348274417,-789.61,0.00018079,2]
[351137110,1738348274427,-1593.71,0.00018079,2]
[351137111,1738348274438,-1436.17,0.00018082,2]
[351137112,1738348274447,-789.61,0.00018216,2]
[351137113,1738348274457,-1436.17,0.00018219,2]
[351137114,1738348274466,-1572.93,0.00018356,2]
[351137115,1738348274475,-1436.17,0.00018356,2]
[351137116,1738348274485,-1572.93,0.00018493,2]
[351137117,1738348274496,-870.13,0.00018628,2]
[351137118,1738348274507,-1572.93,0.0001863,2]
[351137119,1738348274516,-870.13,0.00018765,2]
[351137120,1738348274526,-1572.93,0.00018767,2]
[351137121,1738348274535,-17317.29377728,0.000189,2]
[351137122,1738348274557,-452.6286583,0.0001712,2]
[351137123,1738348274585,-137.5913417,0.0001712,2]
[351137124,1738348274594,-789.61,0.00018353,2]
[351137125,1738348274604,-207372.79865832,0.000189,2]
[351137126,1738348275018,-478.881185,0.00016438,2]
[351137127,1738348275028,-500.0,0.00016438,2]
[351137128,1738348275038,-587.89382099,0.00016438,2]
[351137129,1738348275048,-190.40844632,0.00016575,2]
[351137130,1738348275057,-500.0,0.00016984,2]
[351137131,1738348275066,-500.0,0.0001712,2]
[351137132,1738348275076,-397.79441416,0.00017121,2]
[351137133,1738348275085,-590.22,0.00017257,2]
[351137134,1738348275094,-500.0,0.00017257,2]
[351137135,1738348275103,-500.0,0.00017393,2]
[351137136,1738348275113,-590.22,0.00017394,2]
[351137137,1738348275122,-500.0,0.00017394,2]
[351137138,1738348275131,-500.0,0.00017397,2]
[351137139,1738348275141,-500.0,0.0001753,2]
[351137140,1738348275150,-590.22,0.00017531,2]
[351137141,1738348275159,-500.0,0.00017534,2]
[351137142,1738348275168,-500.0,0.00017667,2]
[351137143,1738348275178,-590.22,0.00017668,2]
[351137144,1738348275191,-500.0,0.00017671,2]
[351137145,1738348275200,-590.22,0.00017805,2]
[351137146,1738348275210,-500.0,0.00017808,2]
[351137147,1738348275219,-1177.58,0.00017943,2]
[351137148,1738348275228,-513.75974734,0.00017945,2]
[351137149,1738348275238,-1177.58,0.0001808,2]
[351137150,1738348275247,-1593.71,0.00018216,2]
[351137151,1738348275256,-1177.58,0.00018217,2]
[351137152,1738348275265,-1593.71,0.00018353,2]
[351137153,1738348275274,-1177.58,0.00018354,2]
[351137154,1738348275284,-789.61,0.0001849,2]
[351137155,1738348275292,-1593.71,0.0001849,2]
[351137156,1738348275301,-1177.58,0.00018491,2]
[351137157,1738348275310,-1436.17,0.00018493,2]
[351137158,1738348275319,-1593.71,0.00018627,2]
[351137159,1738348275329,-1177.58,0.00018628,2]
[351137160,1738348275338,-1436.17,0.0001863,2]
[351137161,1738348275348,-1593.71,0.00018764,2]
[351137162,1738348275357,-1177.58,0.00018765,2]
[351137163,1738348275367,-1436.17,0.00018767,2]
[351137164,1738348275376,-424.90238619,0.000189,2]
[351137165,1738348275388,-1051.10242052,0.000189,2]
[351137166,1738348275399,-3491.5377902,0.000189,2]
[351137167,1738348275410,-480.630005,0.000189,2]
[351137168,1738348275427,-500.0,0.00017531,2]
[351137169,1738348275439,-417.67552047,0.000189,2]
[351137170,1738348275694,-501.92768854,0.00016438,2]
[351137171,1738348275703,-138.69011102,0.00016438,2]
[351137172,1738348275725,-361.30988898,0.00016438,2]
[351137173,1738348275734,-500.0,0.00016984,2]
[351137174,1738348275744,-439.19,0.00017014,2]
[351137175,1738348275754,-774.29,0.00017014,2]
[351137176,1738348275763,-500.0,0.00017121,2]
[351137177,1738348275772,-500.0,0.00017258,2]
[351137178,1738348275782,-500.0,0.00017393,2]
[351137179,1738348275791,-500.0,0.00017395,2]
[351137180,1738348275800,-500.0,0.00017532,2]
[351137181,1738348275809,-500.0,0.00017668,2]
[351137182,1738348275819,-298.69686898,0.00017669,2]
[351137183,1738348275829,-500.0,0.00017805,2]
[351137184,1738348275838,-500.0,0.00017942,2]
[351137185,1738348275847,-590.22,0.00017942,2]
[351137186,1738348275856,-500.0,0.00018079,2]
[351137187,1738348275865,-590.22,0.00018079,2]
[351137188,1738348275875,-500.0,0.00018216,2]
[351137189,1738348275885,-500.0,0.00018353,2]
[351137190,1738348276018,-500.0,0.0001849,2]
[351137191,1738348276047,-789.61,0.00018627,2]
[351137192,1738348276058,-500.0,0.00018627,2]
[351137193,1738348276068,-789.61,0.00018764,2]
[351137194,1738348276077,-306.24266862,0.00018764,2]
[351137195,1738348276087,-85099.08783297,0.000189,2]
[351137196,1738348276098,-4488.76489128,0.000189,2]
[351137197,1738348276110,-1102.1580048,0.000189,2]
[351137198,1738348276135,-500.0,0.00016575,2]
[351137199,1738348276145,-9.06731847,0.0001888,2]
[351137200,1738348276161,-533.59496,0.00018216,2]
[351137201,1738348276203,-500.0,0.00016712,2]
[351137202,1738348276213,-56.62504,0.00018216,2]
[351137203,1738348276223,-141.93268153,0.0001888,2]
[351137204,1738348276232,-8704.16296667,0.000189,2]
[351137205,1738348277403,-1757786.67612313,0.000189,2]
[351137206,1738348277413,-744.03,0.000189,2]
[351137207,1738348277422,-1041.45,0.000189,2]
[351137208,1738348277432,-151.0,0.000189,2]
[351137209,1738348277442,-151.0,0.000189,2]
[351137210,1738348277451,-151.0,0.000189,2]
[351137211,1738348277461,-264.0075,0.000189,2]
[351137212,1738348277471,-679.36,0.000189,2]
[351137213,1738348277480,-672.567098,0.000189,2]
[351137214,1738348277490,-672.567098,0.000189,2]
[351137215,1738348277503,-672.567098,0.000189,2]
[351137216,1738348277512,-672.567098,0.000189,2]
[351137217,1738348277522,-500.0,0.000189,2]
[351137218,1738348277531,-1153.16590249,0.000189,2]
[351137219,1738348277543,-151.0,0.000189,2]
[351137220,1738348277553,-151.0,0.000189,2]
[351137221,1738348277563,-151.0,0.000189,2]
[351137222,1738348277572,-151.0,0.000189,2]
[351137223,1738348277584,-639.49,0.000189,2]
[351137224,1738348277593,-168.66754733,0.000189,2]
[351137225,1738348277602,-809.512431,0.000189,2]
[351137226,1738348277612,-983.34,0.000189,2]
[351137227,1738348277621,-809.512431,0.000189,2]
[351137228,1738348277630,-853.27,0.000189,2]
[351137229,1738348277640,-151.0,0.000189,2]
[351137230,1738348277649,-2290.49,0.000189,2]
[351137231,1738348277659,-151.0,0.000189,2]
[351137232,1738348277670,-151.568455,0.000189,2]
[351137233,1738348277679,-151.0,0.000189,2]
[351137234,1738348277691,-15748.87,0.000189,2]
[351137235,1738348277701,-1756.23,0.000189,2]
[351137236,1738348277710,-151.0,0.000189,2]
[351137237,1738348277720,-297.088747,0.000189,2]
[351137238,1738348277730,-151.0,0.000189,2]
[351137239,1738348277739,-5804.66,0.000189,2]
[351137240,1738348277748,-151.537461,0.000189,2]
[351137241,1738348277757,-151.0,0.000189,2]
[351137242,1738348277767,-151.0,0.000189,2]
[351137243,1738348277776,-246.225,0.000189,2]
[351137244,1738348277786,-1011.15,0.000189,2]
[351137245,1738348277796,-246.225,0.000189,2]
[351137246,1738348277805,-151.0,0.000189,2]
[351137247,1738348277815,-1398.05,0.000189,2]
[351137248,1738348277824,-151.0,0.000189,2]
[351137249,1738348277833,-1117.297616,0.000189,2]
[351137250,1738348277843,-151.0,0.000189,2]
[351137251,1738348277852,-151.0,0.000189,2]
[351137252,1738348277862,-151.0,0.000189,2]
[351137253,1738348277871,-1117.297616,0.000189,2]
[351137254,1738348277881,-706.26,0.000189,2]
[351137255,1738348277890,-162.730615,0.000189,2]
[351137256,1738348277900,-151.0,0.000189,2]
[351137257,1738348277909,-151.0,0.000189,2]
[351137258,1738348277918,-162.730615,0.000189,2]
[351137259,1738348277927,-1396.62,0.000189,2]
[351137260,1738348277939,-151.0,0.000189,2]
[351137261,1738348277948,-1348.69,0.000189,2]
[351137262,1738348277958,-151.0,0.000189,2]
[351137263,1738348277967,-151.0,0.000189,2]
[351137264,1738348277976,-174.891158,0.000189,2]
[351137265,1738348277986,-151.0,0.000189,2]
[351137266,1738348277996,-269.365719,0.000189,2]
[351137267,1738348278006,-151.0,0.000189,2]
[351137268,1738348278015,-151.0,0.000189,2]
[351137269,1738348278024,-151.0,0.000189,2]
[351137270,1738348278033,-1000.0,0.000189,2]
[351137271,1738348278042,-1491.37,0.000189,2]
[351137272,1738348278051,-151.0,0.000189,2]
[351137273,1738348278060,-151.0,0.000189,2]
[351137274,1738348278070,-500.0,0.00018901,2]
[351137275,1738348278079,-500.0,0.00018901,2]
[351137276,1738348278088,-500.0,0.00018901,2]
[351137277,1738348278097,-500.0,0.00018901,2]
[351137278,1738348278107,-592.09,0.00018901,2]
[351137279,1738348278117,-541.54,0.00018901,2]
[351137280,1738348278128,-661.57,0.00018901,2]
[351137281,1738348278137,-568.28,0.00018901,2]
[351137282,1738348278147,-517.91,0.00018901,2]
[351137283,1738348278158,-500.0,0.00018901,2]
[351137284,1738348278169,-573.54,0.00018901,2]
[351137285,1738348278179,-730.37,0.00018901,2]
[351137286,1738348278193,-536.25,0.00018901,2]
[351137287,1738348278202,-978.34,0.00018901,2]
[351137288,1738348278214,-519.92,0.00018901,2]
[351137289,1738348278224,-932.35,0.00018901,2]
[351137290,1738348278234,-1577.73,0.00018901,2]
[351137291,1738348278244,-647.42,0.00018901,2]
[351137292,1738348278254,-286.106421,0.00018901,2]
[351137293,1738348278264,-500.0,0.00018901,2]
[351137294,1738348278273,-551.45,0.00018901,2]
[351137295,1738348278283,-2652.51,0.00018901,2]
[351137296,1738348278292,-616.52,0.00018901,2]
[351137297,1738348278302,-611.99,0.00018901,2]
[351137298,1738348278311,-1917.23,0.00018901,2]
[351137299,1738348278321,-1010.98,0.00018901,2]
[351137300,1738348278331,-345.181563,0.00018901,2]
[351137301,1738348278340,-1746.14,0.00018901,2]
[351137302,1738348278350,-1127.11,0.00018901,2]
[351137303,1738348278359,-957.27,0.00018901,2]
[351137304,1738348278369,-683.39,0.00018901,2]
[351137305,1738348278379,-834.53,0.00018901,2]
[351137306,1738348278388,-3304.95,0.00018901,2]
[351137307,1738348278398,-1375.96,0.00018901,2]
[351137308,1738348278407,-1152.1,0.00018901,2]
[351137309,1738348278417,-637.73,0.00018901,2]
[351137310,1738348278426,-861.45,0.00018901,2]
[351137311,1738348278437,-1174.79,0.00018901,2]
[351137312,1738348278447,-5050.15,0.00018901,2]
[351137313,1738348278588,-1552.68,0.00018901,2]
[351137314,1738348278598,-1714.15,0.00018901,2]
[351137315,1738348278607,-970.54,0.00018901,2]
[351137316,1738348278617,-974.2,0.00018901,2]
[351137317,1738348278626,-2977.2,0.00018901,2]
[351137318,1738348278635,-2130.65,0.00018901,2]
[351137319,1738348278645,-2472.78,0.00018901,2]
[351137320,1738348278655,-3082.33,0.00018901,2]
[351137321,1738348278664,-2310.79,0.00018901,2]
[351137322,1738348278674,-1236.46,0.00018901,2]
[351137323,1738348278687,-500.0,0.00018901,2]
[351137324,1738348278698,-1531.95,0.00018901,2]
[351137325,1738348278708,-1897.38,0.00018901,2]
[351137326,1738348278718,-500.0,0.00018901,2]
[351137327,1738348278727,-4150.61,0.00018901,2]
[351137328,1738348278736,-4363.87,0.00018901,2]
[351137329,1738348278746,-500.0,0.00018901,2]
[351137330,1738348278756,-977.31,0.00018901,2]
[351137331,1738348278765,-500.0,0.00018901,2]
[351137332,1738348278775,-500.0,0.00018901,2]
[351137333,1738348278785,-755.3,0.00018901,2]
[351137334,1738348278795,-1593.71,0.00018901,2]
[351137335,1738348278805,-789.61,0.00018901,2]
[351137336,1738348278815,-500.0,0.00018902,2]
[351137337,1738348278825,-500.0,0.00018902,2]
[351137338,1738348278834,-500.0,0.00018902,2]
[351137339,1738348278844,-772.66,0.00018902,2]
[351137340,1738348278853,-500.0,0.00018902,2]
[351137341,1738348278863,-500.0,0.00018902,2]
[351137342,1738348278874,-606.93,0.00018902,2]
[351137343,1738348278883,-522.94,0.00018902,2]
[351137344,1738348278892,-691.72,0.00018902,2]
[351137345,1738348278902,-694.08,0.00018902,2]
[351137346,1738348278912,-500.0,0.00018902,2]
[351137347,1738348278921,-500.0,0.00018902,2]
[351137348,1738348278930,-622.01,0.00018902,2]
[351137349,1738348278943,-500.0,0.00018902,2]
[351137350,1738348278952,-500.0,0.00018902,2]
[351137351,1738348278962,-208.46804905,0.00018902,2]
[351137352,1738348278972,-799.89,0.00018902,2]
[351137353,1738348278982,-666.3,0.00018902,2]
[351137354,1738348278992,-500.0,0.00018902,2]
[351137355,1738348279003,-536.21,0.00018902,2]
[351137356,1738348279012,-1030.96,0.00018902,2]
[351137357,1738348279022,-872.1,0.00018902,2]
[351137358,1738348279032,-544.21,0.00018902,2]
[351137359,1738348279042,-4715.16,0.00018902,2]
[351137360,1738348279052,-993.3,0.00018902,2]
[351137361,1738348279062,-2605.9,0.00018902,2]
[351137362,1738348279074,-4721.91,0.00018902,2]
[351137363,1738348279084,-2283.47,0.00018902,2]
[351137364,1738348279094,-939.45,0.00018902,2]
[351137365,1738348279104,-2389.08,0.00018902,2]
[351137366,1738348279113,-965.04,0.00018902,2]
[351137367,1738348279123,-557.93,0.00018902,2]
[351137368,1738348279132,-2395.63,0.00018902,2]
[351137369,1738348279142,-1060.87,0.00018902,2]
[351137370,1738348279153,-1276.49,0.00018902,2]
[351137371,1738348279162,-500.0,0.00018902,2]
[351137372,1738348279172,-973.6,0.00018902,2]
[351137373,1738348279181,-870.13,0.00018902,2]
[351137374,1738348279195,-1177.58,0.00018902,2]
[351137375,1738348279204,-510.61,0.00018903,2]